Workbook

Sheet Sheet1
A1: 附件1：
A2: 黄平县事业单位2019年公开招聘工作人员考生总成绩公示暨拟进入体检考生一览表
L3: 时间：2019年9月25日
A4: 序号 | B4: 姓名 | C4: 性别 | D4: 身份证号码 | E4: 报考单位 | F4: 报考岗位 | G4: 笔试 | I4: 面试候考室 | J4: 面试室 | L4: 面试 准考证号 | M4: 面试 | O4: 总成绩 | P4: 名次 | Q4: 是否进入体检 | R4: 备注
G5: 笔试 成绩 | H5: 占总成绩百分比60% | K5: 考号 | M5: 面试 成绩 | N5: 占总成绩百分比40%
A6: 1 | B6: 沈兴华 | C6: 男 | D6: 522622199504261016 | E6: 黄平县工业园区管理委员会下属事业单位 | F6: 04001专业技术岗位 | G6: 72.44 | H6: =G6*0.6 -> 43.46 | I6: =J6 -> 01 | J6: 01 | K6: 01 | L6: ="HP2019"&J6&K6 -> HP20190101 | M6: 80.60 | N6: =M6*0.4 -> 32.24 | O6: =H6+N6 -> 75.70 | P6: 1 | Q6: 是
A7: 2 | B7: 许洁 | C7: 女 | D7: 510722199409072067 | E7: 黄平县工业园区管理委员会下属事业单位 | F7: 04001专业技术岗位 | G7: 65.91 | H7: 39.55 | I7: 01 | J7: 01 | K7: 03 | L7: HP20190103 | M7: 90.00 | N7: 36.00 | O7: 75.55 | P7: 2 | Q7: 是
A8: 3 | B8: 马金香 | C8: 女 | D8: 522622199406290040 | E8: 黄平县工业园区管理委员会下属事业单位 | F8: 04001专业技术岗位 | G8: 66.32 | H8: 39.79 | I8: 01 | J8: 01 | K8: 02 | L8: HP20190102 | M8: 86.06 | N8: 34.42 | O8: 74.22 | P8: 3
A9: 4 | B9: 张兴淋 | C9: 男 | D9: 522622199608072519 | E9: 黄平县工业园区管理委员会下属事业单位 | F9: 04001专业技术岗位 | G9: 65.17 | H9: 39.10 | I9: 01 | J9: 01 | K9: 05 | L9: HP20190105 | M9: 80.80 | N9: 32.32 | O9: 71.42 | P9: 4
A10: 5 | B10: 杨胜慧 | C10: 女 | D10: 522622199301280049 | E10: 黄平县工业园区管理委员会下属事业单位 | F10: 04001专业技术岗位 | G10: 64.68 | H10: 38.81 | I10: 01 | J10: 01 | K10: 06 | L10: HP20190106 | M10: 81.00 | N10: 32.40 | O10: 71.21 | P10: 5
A11: 6 | B11: 潘武华 | C11: 男 | D11: 522622199410291513 | E11: 黄平县工业园区管理委员会下属事业单位 | F11: 04001专业技术岗位 | G11: 65.35 | H11: 39.21 | I11: 01 | J11: 01 | K11: 04 | L11: HP20190104 | M11: 74.80 | N11: 29.92 | O11: 69.13 | P11: 6
A12: 7 | B12: 王俞会 | C12: 女 | D12: 530322199604222229 | E12: 黄平县财政投资评审中心 | F12: 04002管理岗位 | G12: 72.31 | H12: 43.39 | I12: 01 | J12: 01 | K12: 08 | L12: HP20190108 | M12: 83.24 | N12: 33.30 | O12: 76.68 | P12: 1 | Q12: 是
A13: 8 | B13: 李万瑞 | C13: 女 | D13: 530326199701021125 | E13: 黄平县财政投资评审中心 | F13: 04002管理岗位 | G13: 72.63 | H13: 43.58 | I13: 01 | J13: 01 | K13: 07 | L13: HP20190107 | M13: 81.44 | N13: 32.58 | O13: 76.15 | P13: 2
A14: 9 | B14: 吴佐叶 | C14: 女 | D14: 522628199109206621 | E14: 黄平县财政投资评审中心 | F14: 04002管理岗位 | G14: 69.15 | H14: 41.49 | I14: 01 | J14: 01 | K14: 09 | L14: HP20190109 | N14: 0.00 | O14: 41.49 | R14: 面试缺考
A15: 10 | B15: 龙合志 | C15: 男 | D15: 522622199605150817 | E15: 黄平县财政投资评审中心 | F15: 04003管理岗位 | G15: 74.09 | H15: 44.45 | I15: 01 | J15: 01 | K15: 10 | L15: HP20190110 | M15: 83.06 | N15: 33.22 | O15: 77.68 | P15: 1 | Q15: 是
A16: 11 | B16: 雷昌云 | C16: 男 | D16: 522622199302156517 | E16: 黄平县财政投资评审中心 | F16: 04003管理岗位 | G16: 67.24 | H16: 40.34 | I16: 01 | J16: 01 | K16: 12 | L16: HP20190112 | M16: 84.44 | N16: 33.78 | O16: 74.12 | P16: 2
A17: 12 | B17: 龙开源 | C17: 男 | D17: 522622198704216514 | E17: 黄平县财政投资评审中心 | F17: 04003管理岗位 | G17: 67.57 | H17: 40.54 | I17: 01 | J17: 01 | K17: 11 | L17: HP20190111 | N17: 0.00 | O17: 40.54 | R17: 放弃面试
A18: 13 | B18: 张天远 | C18: 男 | D18: 522622199310153033 | E18: 黄平县扶贫开发服务中心 | F18: 04004管理岗位 | G18: 70.11 | H18: 42.07 | I18: 01 | J18: 01 | K18: 14 | L18: HP20190114 | M18: 86.60 | N18: 34.64 | O18: 76.71 | P18: 1 | Q18: 是
A19: 14 | B19: 廖进 | C19: 男 | D19: 522622198706025519 | E19: 黄平县扶贫开发服务中心 | F19: 04004管理岗位 | G19: 71.2 | H19: 42.72 | I19: 01 | J19: 01 | K19: 13 | L19: HP20190113 | M19: 80.80 | N19: 32.32 | O19: 75.04 | P19: 2
A20: 15 | B20: 龙刚 | C20: 男 | D20: 522622199510236511 | E20: 黄平县扶贫开发服务中心 | F20: 04004管理岗位 | G20: 68.62 | H20: 41.17 | I20: 01 | J20: 01 | K20: 15 | L20: HP20190115 | M20: 79.20 | N20: 31.68 | O20: 72.85 | P20: 3
A21: 16 | B21: 田甜 | C21: 女 | D21: 522422199706016245 | E21: 黄平县大数据发展中心 | F21: 04005管理岗位 | G21: 73.89 | H21: 44.33 | I21: 01 | J21: 01 | K21: 16 | L21: HP20190116 | M21: 84.56 | N21: 33.82 | O21: 78.16 | P21: 1 | Q21: 是
A22: 17 | B22: 彭泽文 | C22: 男 | D22: 522129199201024539 | E22: 黄平县大数据发展中心 | F22: 04005管理岗位 | G22: 71.41 | H22: 42.85 | I22: 01 | J22: 01 | K22: 18 | L22: HP20190118 | M22: 79.90 | N22: 31.96 | O22: 74.81 | P22: 2
A23: 18 | B23: 邓丽婷 | C23: 女 | D23: 522725199208264022 | E23: 黄平县大数据发展中心 | F23: 04005管理岗位 | G23: 72.29 | H23: 43.37 | I23: 01 | J23: 01 | K23: 17 | L23: HP20190117 | N23: 0.00 | O23: 43.37 | R23: 面试缺考
A24: 19 | B24: 保加映 | C24: 女 | D24: 530129199401230388 | E24: 黄平县教育科技会计核算中心 | F24: 04006管理岗位 | G24: 69.56 | H24: 41.74 | I24: 01 | J24: 01 | K24: 19 | L24: HP20190119 | M24: 82.56 | N24: 33.02 | O24: 74.76 | P24: 1 | Q24: 是
A25: 20 | B25: 吴芳秀 | C25: 女 | D25: 52260119961018602X | E25: 黄平县教育科技会计核算中心 | F25: 04006管理岗位 | G25: 69.52 | H25: 41.71 | I25: 01 | J25: 01 | K25: 20 | L25: HP20190120 | M25: 81.66 | N25: 32.66 | O25: 74.38 | P25: 2
A26: 21 | B26: 陈永珍 | C26: 女 | D26: 522129199611225528 | E26: 黄平县教育科技会计核算中心 | F26: 04006管理岗位 | G26: 68.45 | H26: 41.07 | I26: 01 | J26: 01 | K26: 21 | L26: HP20190121 | M26: 81.00 | N26: 32.40 | O26: 73.47 | P26: 3
A27: 22 | B27: 潘清 | C27: 男 | D27: 522622199301021514 | E27: 黄平县教育资源中心 | F27: 04007管理岗位 | G27: 71.94 | H27: 43.16 | I27: 01 | J27: 01 | K27: 22 | L27: HP20190122 | M27: 84.40 | N27: 33.76 | O27: 76.92 | P27: 1 | Q27: 是
A28: 23 | B28: 张威 | C28: 男 | D28: 522422198903270037 | E28: 黄平县教育资源中心 | F28: 04007管理岗位 | G28: 71.45 | H28: 42.87 | I28: 01 | J28: 01 | K28: 23 | L28: HP20190123 | M28: 81.80 | N28: 32.72 | O28: 75.59 | P28: 2
A29: 24 | B29: 陈宇彬 | C29: 男 | D29: 522601199508190815 | E29: 黄平县教育资源中心 | F29: 04007管理岗位 | G29: 67.58 | H29: 40.55 | I29: 01 | J29: 01 | K29: 24 | L29: HP20190124 | M29: 82.24 | N29: 32.90 | O29: 73.44 | P29: 3
A30: 25 | B30: 张飞燕 | C30: 女 | D30: 522224199508162024 | E30: 黄平县民族研究所 | F30: 04008管理岗位 | G30: 74.8 | H30: 44.88 | I30: 01 | J30: 01 | K30: 25 | L30: HP20190125 | M30: 86.20 | N30: 34.48 | O30: 79.36 | P30: 1 | Q30: 是
A31: 26 | B31: 伍廷波 | C31: 男 | D31: 522501199310169011 | E31: 黄平县民族研究所 | F31: 04008管理岗位 | G31: 74.73 | H31: 44.84 | I31: 01 | J31: 01 | K31: 26 | L31: HP20190126 | M31: 81.64 | N31: 32.66 | O31: 77.49 | P31: 2
A32: 27 | B32: 赵定隆 | C32: 男 | D32: 522423199507292315 | E32: 黄平县民族研究所 | F32: 04008管理岗位 | G32: 74.23 | H32: 44.54 | I32: 01 | J32: 01 | K32: 27 | L32: HP20190127 | M32: 80.64 | N32: 32.26 | O32: 76.79 | P32: 3
A33: 28 | B33: 张巧巧 | C33: 女 | D33: 522229199509296026 | E33: 黄平县农产品质量检测站 | F33: 04009专业技术岗位 | G33: 71.63 | H33: 42.98 | I33: 01 | J33: 01 | K33: 29 | L33: HP20190129 | M33: 87.64 | N33: 35.06 | O33: 78.03 | P33: 1 | Q33: 是
A34: 29 | B34: 鲁兴怀 | C34: 男 | D34: 533522199501012417 | E34: 黄平县农产品质量检测站 | F34: 04009专业技术岗位 | G34: 72.56 | H34: 43.54 | I34: 01 | J34: 01 | K34: 28 | L34: HP20190128 | M34: 81.10 | N34: 32.44 | O34: 75.98 | P34: 2
A35: 30 | B35: 冉师丽 | C35: 女 | D35: 522127199410214520 | E35: 黄平县农产品质量检测站 | F35: 04009专业技术岗位 | G35: 70.92 | H35: 42.55 | I35: 01 | J35: 01 | K35: 30 | L35: HP20190130 | M35: 80.54 | N35: 32.22 | O35: 74.77 | P35: 3
A36: 31 | B36: 杨君会 | C36: 女 | D36: 533022199412010527 | E36: 黄平县农业基础设施建设服务站 | F36: 04010专业技术岗位 | G36: 73.39 | H36: 44.03 | I36: 02 | J36: 02 | K36: 01 | L36: HP20190201 | M36: 90.20 | N36: 36.08 | O36: 80.11 | P36: 1 | Q36: 是
A37: 32 | B37: 夏帆 | C37: 女 | D37: 522121199608273026 | E37: 黄平县农业基础设施建设服务站 | F37: 04010专业技术岗位 | G37: 70.94 | H37: 42.56 | I37: 02 | J37: 02 | K37: 02 | L37: HP20190202 | M37: 84.60 | N37: 33.84 | O37: 76.40 | P37: 2
A38: 33 | B38: 陈艳 | C38: 女 | D38: 522423199509187025 | E38: 黄平县农业基础设施建设服务站 | F38: 04010专业技术岗位 | G38: 68.62 | H38: =G38*0.6 -> 41.17 | I38: 02 | J38: 02 | K38: 03 | L38: HP20190203 | M38: 77.40 | N38: =M38*0.4 -> 30.96 | O38: 72.13 | P38: 3
A39: 34 | B39: 冯远恩 | C39: 男 | D39: 522121199601080037 | E39: 黄平县植保植检站 | F39: 04011专业技术岗位 | G39: 68.53 | H39: 41.12 | I39: 02 | J39: 02 | K39: 04 | L39: HP20190204 | M39: 79.00 | N39: 31.60 | O39: 72.72 | P39: 1 | Q39: 是
A40: 35 | B40: 吴琳 | C40: 女 | D40: 522622199401103023 | E40: 黄平县植保植检站 | F40: 04011专业技术岗位 | G40: 65.61 | H40: 39.37 | I40: 02 | J40: 02 | K40: 06 | L40: HP20190206 | M40: 80.20 | N40: 32.08 | O40: 71.45 | P40: 2
A41: 36 | B41: 陶双丽 | C41: 女 | D41: 530381199410122545 | E41: 黄平县植保植检站 | F41: 04011专业技术岗位 | G41: 68.12 | H41: 40.87 | I41: 02 | J41: 02 | K41: 05 | L41: HP20190205 | N41: 0.00 | O41: 40.87 | R41: 面试缺考
A42: 37 | B42: 包宜 | C42: 男 | D42: 522422199405086450 | E42: 黄平县劳动人事争议仲裁院 | F42: 04012管理岗位 | G42: 73.06 | H42: 43.84 | I42: 02 | J42: 02 | K42: 07 | L42: HP20190207 | M42: 85.50 | N42: 34.20 | O42: 78.04 | P42: 1 | Q42: 是
A43: 38 | B43: 禹忠双 | C43: 女 | D43: 533025199606123924 | E43: 黄平县劳动人事争议仲裁院 | F43: 04012管理岗位 | G43: 72.66 | H43: 43.60 | I43: 02 | J43: 02 | K43: 08 | L43: HP20190208 | M43: 85.40 | N43: 34.16 | O43: 77.76 | P43: 2
A44: 39 | B44: 王源鸣 | C44: 女 | D44: 522129199509173565 | E44: 黄平县劳动人事争议仲裁院 | F44: 04012管理岗位 | G44: 71.84 | H44: 43.10 | I44: 02 | J44: 02 | K44: 09 | L44: HP20190209 | M44: 86.60 | N44: 34.64 | O44: 77.74 | P44: 3
A45: 40 | B45: 宋亚星 | C45: 男 | D45: 522723199410030630 | E45: 黄平县事业单位干部档案管理中心 | F45: 04013管理岗位 | G45: 78.09 | H45: 46.85 | I45: 02 | J45: 02 | K45: 10 | L45: HP20190210 | M45: 85.20 | N45: 34.08 | O45: 80.93 | P45: 1 | Q45: 是
A46: 41 | B46: 徐大飞 | C46: 男 | D46: 522724199210054757 | E46: 黄平县事业单位干部档案管理中心 | F46: 04013管理岗位 | G46: 74.47 | H46: 44.68 | I46: 02 | J46: 02 | K46: 12 | L46: HP20190212 | M46: 86.40 | N46: 34.56 | O46: 79.24 | P46: 2
A47: 42 | B47: 娄伦高 | C47: 男 | D47: 522725199506234016 | E47: 黄平县事业单位干部档案管理中心 | F47: 04013管理岗位 | G47: 75.8 | H47: 45.48 | I47: 02 | J47: 02 | K47: 11 | L47: HP20190211 | M47: 74.80 | N47: 29.92 | O47: 75.40 | P47: 3
A48: 43 | B48: 潘兴美 | C48: 女 | D48: 522622199112040046 | E48: 黄平县事业单位干部档案管理中心 | F48: 04014管理岗位 | G48: 76.51 | H48: 45.91 | I48: 02 | J48: 02 | K48: 13 | L48: HP20190213 | M48: 80.40 | N48: 32.16 | O48: 78.07 | P48: 1 | Q48: 是
A49: 44 | B49: 潘盛碧 | C49: 女 | D49: 522622199104171521 | E49: 黄平县事业单位干部档案管理中心 | F49: 04014管理岗位 | G49: 74.15 | H49: 44.49 | I49: 02 | J49: 02 | K49: 14 | L49: HP20190214 | M49: 82.60 | N49: 33.04 | O49: 77.53 | P49: 2
A50: 45 | B50: 龙小芬 | C50: 女 | D50: 522622199707081525 | E50: 黄平县事业单位干部档案管理中心 | F50: 04014管理岗位 | G50: 71.41 | H50: 42.85 | I50: 02 | J50: 02 | K50: 15 | L50: HP20190215 | M50: 77.80 | N50: 31.12 | O50: 73.97 | P50: 3
A51: 46 | B51: 谢慧慧 | C51: 女 | D51: 522622199611180529 | E51: 黄平县市场监督管理信息中心 | F51: 04015管理岗位 | G51: 71.17 | H51: 42.70 | I51: 02 | J51: 02 | K51: 17 | L51: HP20190217 | M51: 84.60 | N51: 33.84 | O51: 76.54 | P51: 1 | Q51: 是
A52: 47 | B52: 周敏 | C52: 女 | D52: 522622199512114024 | E52: 黄平县市场监督管理信息中心 | F52: 04015管理岗位 | G52: 71.97 | H52: 43.18 | I52: 02 | J52: 02 | K52: 16 | L52: HP20190216 | M52: 82.60 | N52: 33.04 | O52: 76.22 | P52: 2
A53: 48 | B53: 雷扬 | C53: 女 | D53: 522622199006240028 | E53: 黄平县市场监督管理信息中心 | F53: 04015管理岗位 | G53: 68.52 | H53: 41.11 | I53: 02 | J53: 02 | K53: 18 | L53: HP20190218 | M53: 87.60 | N53: 35.04 | O53: 76.15 | P53: 3
A54: 49 | B54: 李家新 | C54: 男 | D54: 522224199304214013 | E54: 黄平县市场监督管理检验检测中心 | F54: 04016管理岗位 | G54: 78.2 | H54: 46.92 | I54: 02 | J54: 02 | K54: 19 | L54: HP20190219 | M54: 86.20 | N54: 34.48 | O54: 81.40 | P54: 1 | Q54: 是
A55: 50 | B55: 张永 | C55: 男 | D55: 530325199707062132 | E55: 黄平县市场监督管理检验检测中心 | F55: 04016管理岗位 | G55: 73.33 | H55: 44.00 | I55: 02 | J55: 02 | K55: 21 | L55: HP20190221 | M55: 82.00 | N55: 32.80 | O55: 76.80 | P55: 2
A56: 51 | B56: 李佳佳 | C56: 女 | D56: 522129199602253068 | E56: 黄平县市场监督管理检验检测中心 | F56: 04016管理岗位 | G56: 73.78 | H56: 44.27 | I56: 02 | J56: 02 | K56: 20 | L56: HP20190220 | M56: 79.60 | N56: 31.84 | O56: 76.11 | P56: 3
A57: 52 | B57: 毛元帅 | C57: 男 | D57: 522428199606050217 | E57: 黄平县市场监督管理检验检测中心 | F57: 04017管理岗位 | G57: 80.08 | H57: 48.05 | I57: 02 | J57: 02 | K57: 22 | L57: HP20190222 | M57: 88.20 | N57: 35.28 | O57: 83.33 | P57: 1 | Q57: 是
A58: 53 | B58: 潘帮强 | C58: 男 | D58: 522601199011133719 | E58: 黄平县市场监督管理检验检测中心 | F58: 04017管理岗位 | G58: 75.66 | H58: 45.40 | I58: 02 | J58: 02 | K58: 23 | L58: HP20190223 | M58: 75.00 | N58: 30.00 | O58: 75.40 | P58: 2
A59: 54 | B59: 邓诚 | C59: 男 | D59: 522323199409127556 | E59: 黄平县市场监督管理检验检测中心 | F59: 04017管理岗位 | G59: 73.46 | H59: 44.08 | I59: 02 | J59: 02 | K59: 24 | L59: HP20190224 | N59: 0.00 | O59: 44.08 | R59: 面试缺考
A60: 55 | B60: 杨茜 | C60: 女 | D60: 522622199501140024 | E60: 黄平县市场监督管理投诉举报中心 | F60: 04018管理岗位 | G60: 78.21 | H60: 46.93 | I60: 02 | J60: 02 | K60: 25 | L60: HP20190225 | M60: 86.20 | N60: 34.48 | O60: 81.41 | P60: 1 | Q60: 是
A61: 56 | B61: 王烨 | C61: 女 | D61: 522622199412023520 | E61: 黄平县市场监督管理投诉举报中心 | F61: 04018管理岗位 | G61: 72.43 | H61: 43.46 | I61: 02 | J61: 02 | K61: 26 | L61: HP20190226 | M61: 88.00 | N61: 35.20 | O61: 78.66 | P61: 2
A62: 57 | B62: 杨明 | C62: 男 | D62: 522622198607070058 | E62: 黄平县市场监督管理投诉举报中心 | F62: 04018管理岗位 | G62: 71.26 | H62: 42.76 | I62: 02 | J62: 02 | K62: 27 | L62: HP20190227 | M62: 84.50 | N62: 33.80 | O62: 76.56 | P62: 3
A63: 58 | B63: 潘逸超 | C63: 男 | D63: 522622199702210519 | E63: 黄平县法律援助中心 | F63: 04019管理岗位 | G63: 75.61 | H63: 45.37 | I63: 02 | J63: 02 | K63: 28 | L63: HP20190228 | M63: 74.60 | N63: 29.84 | O63: 75.21 | P63: 1 | Q63: 是
A64: 59 | B64: 邓煜琳 | C64: 男 | D64: 522622199605042015 | E64: 黄平县法律援助中心 | F64: 04019管理岗位 | G64: 72.69 | H64: 43.61 | I64: 02 | J64: 02 | K64: 30 | L64: HP20190230 | M64: 76.80 | N64: 30.72 | O64: 74.33 | P64: 2
A65: 60 | B65: 郭国爱 | C65: 女 | D65: 522622199512010540 | E65: 黄平县法律援助中心 | F65: 04019管理岗位 | G65: 74.14 | H65: 44.48 | I65: 02 | J65: 02 | K65: 29 | L65: HP20190229 | M65: 68.80 | N65: 27.52 | O65: 72.00 | P65: 3
A66: 61 | B66: 刘欢欢 | C66: 女 | D66: 522601199605140828 | E66: 黄平县公证处 | F66: 04020管理岗位 | G66: 77.3 | H66: 46.38 | I66: 03 | J66: 03 | K66: 01 | L66: HP20190301 | M66: 79.06 | N66: 31.62 | O66: 78.00 | P66: 1 | Q66: 是
A67: 62 | B67: 忽晓会 | C67: 女 | D67: 41130219880808380X | E67: 黄平县公证处 | F67: 04020管理岗位 | G67: 71.1 | H67: 42.66 | I67: 03 | J67: 03 | K67: 02 | L67: HP20190302 | M67: 80.42 | N67: 32.17 | O67: 74.83 | P67: 2
A68: 63 | B68: 王芳 | C68: 女 | D68: 520121199506025425 | E68: 黄平县公证处 | F68: 04020管理岗位 | G68: 70.96 | H68: 42.58 | I68: 03 | J68: 03 | K68: 03 | L68: HP20190303 | M68: 71.98 | N68: 28.79 | O68: 71.37 | P68: 3
A69: 64 | B69: 龙洁 | C69: 女 | D69: 522622199303250046 | E69: 黄平县普查服务中心 | F69: 04021管理岗位 | G69: 73.88 | H69: 44.33 | I69: 03 | J69: 03 | K69: 04 | L69: HP20190304 | M69: 78.86 | N69: 31.54 | O69: 75.87 | P69: 1 | Q69: 是
A70: 65 | B70: 杨昌珍 | C70: 女 | D70: 522622199404186020 | E70: 黄平县普查服务中心 | F70: 04021管理岗位 | G70: 72.85 | H70: =G70*0.6 -> 43.71 | I70: =J70 -> 03 | J70: 03 | K70: 05 | L70: ="HP2019"&J70&K70 -> HP20190305 | M70: 77.94 | N70: =M70*0.4 -> 31.18 | O70: =H70+N70 -> 74.89 | P70: 2
A71: 66 | B71: 潘宁 | C71: 男 | D71: 522622199508012519 | E71: 黄平县普查服务中心 | F71: 04021管理岗位 | G71: 71.07 | H71: 42.64 | I71: 03 | J71: 03 | K71: 06 | L71: HP20190306 | M71: 69.36 | N71: 27.74 | O71: 70.39 | P71: 3
A72: 67 | B72: 邹凝远 | C72: 男 | D72: 522701199201290315 | E72: 黄平县普查服务中心 | F72: 04022管理岗位 | G72: 75.13 | H72: 45.08 | I72: 03 | J72: 03 | K72: 07 | L72: HP20190307 | M72: 77.56 | N72: 31.02 | O72: 76.10 | P72: 1 | Q72: 是
A73: 68 | B73: 王进凯 | C73: 男 | D73: 522324199606125230 | E73: 黄平县普查服务中心 | F73: 04022管理岗位 | G73: 74.43 | H73: 44.66 | I73: 03 | J73: 03 | K73: 09 | L73: HP20190309 | M73: 76.36 | N73: 30.54 | O73: 75.20 | P73: 2
A74: 69 | B74: 谢成玉 | C74: 男 | D74: 522422199612207016 | E74: 黄平县普查服务中心 | F74: 04022管理岗位 | G74: 75.08 | H74: 45.05 | I74: 03 | J74: 03 | K74: 08 | L74: HP20190308 | M74: 73.10 | N74: 29.24 | O74: 74.29 | P74: 3
A75: 70 | B75: 范继明 | C75: 男 | D75: 522129198708100014 | E75: 黄平县利用外资和招商引资项目代办服务中心 | F75: 04023管理岗位 | G75: 65.38 | H75: 39.23 | I75: 03 | J75: 03 | K75: 10 | L75: HP20190310 | M75: 73.80 | N75: 29.52 | O75: 68.75 | P75: 1 | Q75: 是
A76: 71 | B76: 淳于庆蘅 | C76: 女 | D76: 52262219930704002X | E76: 黄平县利用外资和招商引资项目代办服务中心 | F76: 04023管理岗位 | G76: 59.84 | H76: 35.90 | I76: 03 | J76: 03 | K76: 12 | L76: HP20190312 | M76: 80.28 | N76: 32.11 | O76: 68.02 | P76: 2
A77: 72 | B77: 王雪 | C77: 女 | D77: 522128199606041066 | E77: 黄平县利用外资和招商引资项目代办服务中心 | F77: 04023管理岗位 | G77: 63.77 | H77: 38.26 | I77: 03 | J77: 03 | K77: 11 | L77: HP20190311 | N77: 0.00 | O77: 38.26 | R77: 面试缺考
A78: 73 | B78: 王梓娟 | C78: 女 | D78: 522622199709180041 | E78: 黄平县退役军人服务中心 | F78: 04024管理岗位 | G78: 66.88 | H78: 40.13 | I78: 03 | J78: 03 | K78: 13 | L78: HP20190313 | M78: 77.58 | N78: 31.03 | O78: 71.16 | P78: 1 | Q78: 是
A79: 74 | B79: 吴利 | C79: 女 | D79: 522622199207051047 | E79: 黄平县退役军人服务中心 | F79: 04024管理岗位 | G79: 63.82 | H79: 38.29 | I79: 03 | J79: 03 | K79: 14 | L79: HP20190314 | M79: 78.60 | N79: 31.44 | O79: 69.73 | P79: 2
A80: 75 | B80: 徐峥嵘 | C80: 男 | D80: 522622198608112010 | E80: 黄平县退役军人服务中心 | F80: 04024管理岗位 | G80: 63.62 | H80: 38.17 | I80: 03 | J80: 03 | K80: 15 | L80: HP20190315 | M80: 75.06 | N80: 30.02 | O80: 68.20 | P80: 3
A81: 76 | B81: 龚琳 | C81: 女 | D81: 522725199802150028 | E81: 黄平县文化馆 | F81: 04025管理岗位 | G81: 67.54 | H81: 40.52 | I81: 03 | J81: 03 | K81: 18 | L81: HP20190318 | M81: 82.28 | N81: 32.91 | O81: 73.44 | P81: 1 | Q81: 是
A82: 77 | B82: 杨霞 | C82: 女 | D82: 522601199507016524 | E82: 黄平县文化馆 | F82: 04025管理岗位 | G82: 68.88 | H82: 41.33 | I82: 03 | J82: 03 | K82: 16 | L82: HP20190316 | M82: 79.88 | N82: 31.95 | O82: 73.28 | P82: 2
A83: 78 | B83: 卢均义 | C83: 男 | D83: 522422198709173233 | E83: 黄平县文化馆 | F83: 04025管理岗位 | G83: 67.7 | H83: 40.62 | I83: 03 | J83: 03 | K83: 17 | L83: HP20190317 | M83: 70.98 | N83: 28.39 | O83: 69.01 | P83: 3
A84: 79 | B84: 李南峰 | C84: 男 | D84: 522622199609205512 | E84: 黄平县体育中心 | F84: 04026管理岗位 | G84: 69.51 | H84: 41.71 | I84: 03 | J84: 03 | K84: 20 | L84: HP20190320 | M84: 81.04 | N84: 32.42 | O84: 74.12 | P84: 1 | Q84: 是
A85: 80 | B85: 徐江 | C85: 男 | D85: 522226199505150418 | E85: 黄平县体育中心 | F85: 04026管理岗位 | G85: 71.83 | H85: 43.10 | I85: 03 | J85: 03 | K85: 19 | L85: HP20190319 | M85: 76.60 | N85: 30.64 | O85: 73.74 | P85: 2
A86: 81 | B86: 杨俊 | C86: 男 | D86: 522622199112110534 | E86: 黄平县体育中心 | F86: 04026管理岗位 | G86: 69.15 | H86: 41.49 | I86: 03 | J86: 03 | K86: 21 | L86: HP20190321 | M86: 78.38 | N86: 31.35 | O86: 72.84 | P86: 3
A87: 82 | B87: 肖成飞 | C87: 女 | D87: 532130199203031342 | E87: 黄平县人民来访接待服务中心 | F87: 04027管理岗位 | G87: 69.1 | H87: 41.46 | I87: 03 | J87: 03 | K87: 22 | L87: HP20190322 | M87: 81.20 | N87: 32.48 | O87: 73.94 | P87: 1 | Q87: 是
A88: 83 | B88: 滕野 | C88: 男 | D88: 522725199110280614 | E88: 黄平县人民来访接待服务中心 | F88: 04027管理岗位 | G88: 66.14 | H88: 39.68 | I88: 03 | J88: 03 | K88: 23 | L88: HP20190323 | M88: 75.58 | N88: 30.23 | O88: 69.92 | P88: 2
A89: 84 | B89: 赵庆筛 | C89: 女 | D89: 522427199303104023 | E89: 黄平县人民来访接待服务中心 | F89: 04027管理岗位 | G89: 65.53 | H89: 39.32 | I89: 03 | J89: 03 | K89: 24 | L89: HP20190324 | M89: 74.28 | N89: 29.71 | O89: 69.03 | P89: 3
A90: 85 | B90: 李沛泠 | C90: 女 | D90: 522725199403200024 | E90: 黄平县应急指挥信息中心 | F90: 04028管理岗位 | G90: 72.11 | H90: 43.27 | I90: 03 | J90: 03 | K90: 28 | L90: HP20190328 | M90: 84.72 | N90: 33.89 | O90: 77.15 | P90: 1 | Q90: 是
A91: 86 | B91: 母学鸟 | C91: 女 | D91: 520202199404176325 | E91: 黄平县应急指挥信息中心 | F91: 04028管理岗位 | G91: 72.77 | H91: 43.66 | I91: 03 | J91: 03 | K91: 26 | L91: HP20190326 | M91: 82.80 | N91: 33.12 | O91: 76.78 | P91: 2 | Q91: 是
A92: 87 | B92: 吴昌旭 | C92: 男 | D92: 522623199302192813 | E92: 黄平县应急指挥信息中心 | F92: 04028管理岗位 | G92: 72.9 | H92: 43.74 | I92: 03 | J92: 03 | K92: 25 | L92: HP20190325 | M92: 79.74 | N92: 31.90 | O92: 75.64 | P92: 3
A93: 88 | B93: 瞿斌 | C93: 男 | D93: 53032519920903055X | E93: 黄平县应急指挥信息中心 | F93: 04028管理岗位 | G93: 72.63 | H93: 43.58 | I93: 03 | J93: 03 | K93: 27 | L93: HP20190327 | M93: 79.40 | N93: 31.76 | O93: 75.34 | P93: 4
A94: 89 | B94: 柯维成 | C94: 男 | D94: 530323199407231114 | E94: 黄平县应急指挥信息中心 | F94: 04028管理岗位 | G94: 71.91 | H94: 43.15 | I94: 03 | J94: 03 | K94: 29 | L94: HP20190329 | M94: 74.44 | N94: 29.78 | O94: 72.92 | P94: 5
A95: 90 | B95: 祝勇 | C95: 男 | D95: 520203199003023957 | E95: 黄平县应急指挥信息中心 | F95: 04028管理岗位 | G95: 71.8 | H95: 43.08 | I95: 03 | J95: 03 | K95: 30 | L95: HP20190330 | N95: 0.00 | O95: 43.08 | R95: 面试缺考
A96: 91 | B96: 张熙 | C96: 男 | D96: 522225199701030054 | E96: 黄平县地震科技服务中心 | F96: 04029管理岗位 | G96: 75.61 | H96: 45.37 | I96: 04 | J96: 04 | K96: 01 | L96: HP20190401 | M96: 83.00 | N96: 33.20 | O96: 78.57 | P96: 1 | Q96: 是
A97: 92 | B97: 徐阳 | C97: 男 | D97: 522622199508190016 | E97: 黄平县地震科技服务中心 | F97: 04029管理岗位 | G97: 71.54 | H97: 42.92 | I97: 04 | J97: 04 | K97: 02 | L97: HP20190402 | M97: 87.40 | N97: 34.96 | O97: 77.88 | P97: 2
A98: 93 | B98: 陈昭春 | C98: 男 | D98: 522428198812010211 | E98: 黄平县地震科技服务中心 | F98: 04029管理岗位 | G98: 70.46 | H98: 42.28 | I98: 04 | J98: 04 | K98: 03 | L98: HP20190403 | M98: 74.80 | N98: 29.92 | O98: 72.20 | P98: 3
A99: 94 | B99: 罗甜 | C99: 女 | D99: 520111199510231528 | E99: 黄平县物业服务中心 | F99: 04030管理岗位 | G99: 68.52 | H99: 41.11 | I99: 04 | J99: 04 | K99: 05 | L99: HP20190405 | M99: 84.00 | N99: 33.60 | O99: 74.71 | P99: 1 | Q99: 是
A100: 95 | B100: 叶吉丽 | C100: 女 | D100: 522224199510122865 | E100: 黄平县物业服务中心 | F100: 04030管理岗位 | G100: 66.13 | H100: 39.68 | I100: 04 | J100: 04 | K100: 06 | L100: HP20190406 | M100: 83.60 | N100: 33.44 | O100: 73.12 | P100: 2
A101: 96 | B101: 王文迅 | C101: 男 | D101: 522127199501082519 | E101: 黄平县物业服务中心 | F101: 04030管理岗位 | G101: 69.26 | H101: 41.56 | I101: 04 | J101: 04 | K101: 04 | L101: HP20190404 | M101: 77.40 | N101: 30.96 | O101: 72.52 | P101: 3
A102: 97 | B102: 龙哀鸿 | C102: 男 | D102: 522622198608096559 | E102: 黄平县建筑工程质量和安全服务中心 | F102: 04031专业技术岗位 | G102: 71.3 | H102: 42.78 | I102: 04 | J102: 04 | K102: 07 | L102: HP20190407 | M102: 81.40 | N102: 32.56 | O102: 75.34 | P102: 1 | Q102: 是
A103: 98 | B103: 罗弘 | C103: 女 | D103: 522323199506141325 | E103: 黄平县建筑工程质量和安全服务中心 | F103: 04031专业技术岗位 | G103: 69.07 | H103: 41.44 | I103: 04 | J103: 04 | K103: 08 | L103: HP20190408 | M103: 84.00 | N103: 33.60 | O103: 75.04 | P103: 2
A104: 99 | B104: 袁剑 | C104: 男 | D104: 522622199103032511 | E104: 黄平县建筑工程质量和安全服务中心 | F104: 04031专业技术岗位 | G104: 66.71 | H104: 40.03 | I104: 04 | J104: 04 | K104: 09 | L104: HP20190409 | M104: 80.20 | N104: 32.08 | O104: 72.11 | P104: 3
A105: 100 | B105: 吴明兰 | C105: 女 | D105: 522622199205270027 | E105: 黄平县自然资源局下属事业单位 | F105: 04032专业技术岗位 | I105: 04 | J105: 04 | K105: 13 | L105: HP20190413 | M105: 85.60 | N105: =M105 -> 85.60 | O105: 85.60 | P105: 1 | Q105: 是
A106: 101 | B106: 杨再琼 | C106: 女 | D106: 522622198911222028 | E106: 黄平县自然资源局下属事业单位 | F106: 04032专业技术岗位 | I106: 04 | J106: 04 | K106: 12 | L106: HP20190412 | M106: 83.60 | N106: 83.60 | O106: 83.60 | P106: 2 | Q106: 是
A107: 102 | B107: 雷波 | C107: 男 | D107: 522622199705231016 | E107: 黄平县自然资源局下属事业单位 | F107: 04032专业技术岗位 | I107: 04 | J107: 04 | K107: 10 | L107: HP20190410 | M107: 81.00 | N107: 81.00 | O107: 81.00 | P107: 3 | Q107: 是
A108: 103 | B108: 田雨 | C108: 男 | D108: 522221199706240418 | E108: 黄平县自然资源局下属事业单位 | F108: 04032专业技术岗位 | I108: 04 | J108: 04 | K108: 15 | L108: HP20190415 | M108: 81.00 | N108: 81.00 | O108: 81.00 | P108: 4 | Q108: 是
A109: 104 | B109: 肖长喜 | C109: 男 | D109: 522227199210076018 | E109: 黄平县自然资源局下属事业单位 | F109: 04032专业技术岗位 | I109: 04 | J109: 04 | K109: 14 | L109: HP20190414 | M109: 80.00 | N109: 80.00 | O109: 80.00 | P109: 5
A110: 105 | B110: 石忠文 | C110: 男 | D110: 532528199512142759 | E110: 黄平县自然资源局下属事业单位 | F110: 04032专业技术岗位 | I110: 04 | J110: 04 | K110: 17 | L110: HP20190417 | M110: 79.20 | N110: 79.20 | O110: 79.20 | P110: 6
A111: 106 | B111: 杨永飞 | C111: 男 | D111: 532122199504170338 | E111: 黄平县自然资源局下属事业单位 | F111: 04032专业技术岗位 | I111: 04 | J111: 04 | K111: 16 | L111: HP20190416 | M111: 77.00 | N111: 77.00 | O111: 77.00 | P111: 7
A112: 107 | B112: 王永灿 | C112: 男 | D112: 522622199809290555 | E112: 黄平县自然资源局下属事业单位 | F112: 04032专业技术岗位 | I112: 04 | J112: 04 | K112: 11 | L112: HP20190411 | M112: 75.20 | N112: 75.20 | O112: 75.20 | P112: 8
A113: 108 | B113: 张开永 | C113: 男 | D113: 530326199510044615 | E113: 黄平县自然资源调查技术服务中心 | F113: 04033管理岗位 | G113: 77.72 | H113: =G113*0.6 -> 46.63 | I113: 04 | J113: 04 | K113: 18 | L113: HP20190418 | M113: 82.60 | N113: =M113*0.4 -> 33.04 | O113: 79.67 | P113: 1 | Q113: 是
A114: 109 | B114: 叶凯 | C114: 男 | D114: 522501199712225792 | E114: 黄平县自然资源调查技术服务中心 | F114: 04033管理岗位 | G114: 72.71 | H114: 43.63 | I114: 04 | J114: 04 | K114: 19 | L114: HP20190419 | M114: 84.80 | N114: 33.92 | O114: 77.55 | P114: 2
A115: 110 | B115: 杨勇 | C115: 男 | D115: 52262219920810151X | E115: 黄平县自然资源调查技术服务中心 | F115: 04033管理岗位 | G115: 71.99 | H115: 43.19 | I115: 04 | J115: 04 | K115: 20 | L115: HP20190420 | M115: 82.60 | N115: 33.04 | O115: 76.23 | P115: 3
A116: 111 | B116: 肖良玉 | C116: 女 | D116: 522630199603140025 | E116: 黄平县目标绩效综合信息服务中心 | F116: 04034管理岗位 | G116: 70.98 | H116: 42.59 | I116: 04 | J116: 04 | K116: 22 | L116: HP20190422 | M116: 89.00 | N116: 35.60 | O116: 78.19 | P116: 1 | Q116: 是
A117: 112 | B117: 黄勇 | C117: 男 | D117: 522422199410254076 | E117: 黄平县目标绩效综合信息服务中心 | F117: 04034管理岗位 | G117: 69.97 | H117: 41.98 | I117: 04 | J117: 04 | K117: 23 | L117: HP20190423 | M117: 88.20 | N117: 35.28 | O117: 77.26 | P117: 2
A118: 113 | B118: 赵峻 | C118: 男 | D118: 522725199410214336 | E118: 黄平县目标绩效综合信息服务中心 | F118: 04034管理岗位 | G118: 71 | H118: 42.60 | I118: 04 | J118: 04 | K118: 21 | L118: HP20190421 | M118: 80.40 | N118: 32.16 | O118: 74.76 | P118: 3
A119: 114 | B119: 潘彦呈 | C119: 男 | D119: 522601199506067610 | E119: 黄平县融媒体中心 | F119: 04035专业技术岗位 | G119: 70.4 | H119: 42.24 | I119: 04 | J119: 04 | K119: 26 | L119: HP20190426 | M119: 91.20 | N119: 36.48 | O119: 78.72 | P119: 1 | Q119: 是
A120: 115 | B120: 杨煜川 | C120: 男 | D120: 522601199312066038 | E120: 黄平县融媒体中心 | F120: 04035专业技术岗位 | G120: 73.2 | H120: 43.92 | I120: 04 | J120: 04 | K120: 24 | L120: HP20190424 | M120: 85.60 | N120: 34.24 | O120: 78.16 | P120: 2
A121: 116 | B121: 孟铭 | C121: 男 | D121: 522130199510211616 | E121: 黄平县融媒体中心 | F121: 04035专业技术岗位 | G121: 72.3 | H121: 43.38 | I121: 04 | J121: 04 | K121: 25 | L121: HP20190425 | M121: 83.20 | N121: 33.28 | O121: 76.66 | P121: 3
A122: 117 | B122: 时宏英 | C122: 女 | D122: 522622199609031065 | E122: 黄平县融媒体中心 | F122: 04036管理岗位 | G122: 66.28 | H122: 39.77 | I122: 04 | J122: 04 | K122: 29 | L122: HP20190429 | M122: 86.20 | N122: 34.48 | O122: 74.25 | P122: 1 | Q122: 是
A123: 118 | B123: 刘国华 | C123: 男 | D123: 522622198402183518 | E123: 黄平县融媒体中心 | F123: 04036管理岗位 | G123: 69.01 | H123: 41.41 | I123: 04 | J123: 04 | K123: 28 | L123: HP20190428 | M123: 80.80 | N123: 32.32 | O123: 73.73 | P123: 2
A124: 119 | B124: 彭丹 | C124: 女 | D124: 522622199606153526 | E124: 黄平县融媒体中心 | F124: 04036管理岗位 | G124: 71.05 | H124: 42.63 | I124: 04 | J124: 04 | K124: 27 | L124: HP20190427 | N124: 0.00 | O124: 42.63 | R124: 面试缺考
A125: 120 | B125: 金虹杰 | C125: 男 | D125: 522401199007188812 | E125: 黄平县融媒体中心 | F125: 04037专业技术岗位 | G125: 75.97 | H125: 45.58 | I125: 05 | J125: 05 | K125: 01 | L125: HP20190501 | M125: 81.10 | N125: 32.44 | O125: 78.02 | P125: 1 | Q125: 是
A126: 121 | B126: 龙学军 | C126: 男 | D126: 522426198801193611 | E126: 黄平县融媒体中心 | F126: 04037专业技术岗位 | G126: 73.59 | H126: 44.15 | I126: 05 | J126: 05 | K126: 03 | L126: HP20190503 | M126: 83.30 | N126: 33.32 | O126: 77.47 | P126: 2
A127: 122 | B127: 龙代仁 | C127: 男 | D127: 522627199206284430 | E127: 黄平县融媒体中心 | F127: 04037专业技术岗位 | G127: 74.46 | H127: 44.68 | I127: 05 | J127: 05 | K127: 02 | L127: HP20190502 | M127: 76.70 | N127: 30.68 | O127: 75.36 | P127: 3
A128: 123 | B128: 杨华远 | C128: 男 | D128: 522425199203157811 | E128: 黄平县综治服务中心 | F128: 04038管理岗位 | G128: 73.7 | H128: 44.22 | I128: 05 | J128: 05 | K128: 05 | L128: HP20190505 | M128: 86.80 | N128: 34.72 | O128: 78.94 | P128: 1 | Q128: 是
A129: 124 | B129: 程龙春 | C129: 女 | D129: 522724199402253822 | E129: 黄平县综治服务中心 | F129: 04038管理岗位 | G129: 74.35 | H129: 44.61 | I129: 05 | J129: 05 | K129: 04 | L129: HP20190504 | M129: 83.20 | N129: 33.28 | O129: 77.89 | P129: 2
A130: 125 | B130: 陈飞 | C130: 女 | D130: 522426199412210101 | E130: 黄平县综治服务中心 | F130: 04038管理岗位 | G130: 73.58 | H130: 44.15 | I130: 05 | J130: 05 | K130: 06 | L130: HP20190506 | M130: 81.50 | N130: 32.60 | O130: 76.75 | P130: 3
A131: 126 | B131: 席运鹏 | C131: 男 | D131: 522224199512140012 | E131: 黄平县五个片区水务站 | F131: 04039专业技术岗位 | G131: 73.88 | H131: 44.33 | I131: 05 | J131: 05 | K131: 07 | L131: HP20190507 | M131: 78.70 | N131: 31.48 | O131: 75.81 | P131: 1 | Q131: 是
A132: 127 | B132: 鄢继富 | C132: 男 | D132: 522221199505071611 | E132: 黄平县五个片区水务站 | F132: 04039专业技术岗位 | G132: 68.92 | H132: 41.35 | I132: 05 | J132: 05 | K132: 10 | L132: HP20190510 | M132: 80.60 | N132: 32.24 | O132: 73.59 | P132: 2 | Q132: 是
A133: 128 | B133: 袁中山 | C133: 男 | D133: 522225199209126310 | E133: 黄平县五个片区水务站 | F133: 04039专业技术岗位 | G133: 67.98 | H133: 40.79 | I133: 05 | J133: 05 | K133: 12 | L133: HP20190512 | M133: 79.20 | N133: 31.68 | O133: 72.47 | P133: 3 | Q133: 是
A134: 129 | B134: 袁莹 | C134: 女 | D134: 522322199508302085 | E134: 黄平县五个片区水务站 | F134: 04039专业技术岗位 | G134: 64.58 | H134: 38.75 | I134: =J134 -> 05 | J134: 05 | K134: 15 | L134: ="HP2019"&J134&K134 -> HP20190515 | M134: 80.10 | N134: 32.04 | O134: =H134+N134 -> 70.79 | P134: 4
A135: 130 | B135: 冯将 | C135: 男 | D135: 522227199403113217 | E135: 黄平县五个片区水务站 | F135: 04039专业技术岗位 | G135: 71.42 | H135: 42.85 | I135: 05 | J135: 05 | K135: 08 | L135: HP20190508 | M135: 67.50 | N135: 27.00 | O135: 69.85 | P135: 5
A136: 131 | B136: 何江城 | C136: 男 | D136: 522426199310186817 | E136: 黄平县五个片区水务站 | F136: 04039专业技术岗位 | G136: 64.59 | H136: 38.75 | I136: 05 | J136: 05 | K136: 14 | L136: HP20190514 | M136: 70.00 | N136: 28.00 | O136: 66.75 | P136: 6
A137: 132 | B137: 熊文财 | C137: 男 | D137: 522630199702030753 | E137: 黄平县五个片区水务站 | F137: 04039专业技术岗位 | G137: 69.62 | H137: 41.77 | I137: 05 | J137: 05 | K137: 09 | L137: HP20190509 | N137: 0.00 | O137: 41.77 | R137: 迟到，取消面试资格
A138: 133 | B138: 兰竹 | C138: 男 | D138: 522622199507150039 | E138: 黄平县五个片区水务站 | F138: 04039专业技术岗位 | G138: 68.07 | H138: 40.84 | I138: 05 | J138: 05 | K138: 11 | L138: HP20190511 | N138: 0.00 | O138: 40.84 | R138: 面试缺考
A139: 134 | B139: 杨志宇 | C139: 男 | D139: 52212219940514401X | E139: 黄平县五个片区水务站 | F139: 04039专业技术岗位 | G139: 65.03 | H139: 39.02 | I139: 05 | J139: 05 | K139: 13 | L139: HP20190513 | N139: 0.00 | O139: 39.02 | R139: 迟到，取消面试资格
A140: 135 | B140: 王臣丹 | C140: 女 | D140: 522622199501270523 | E140: 黄平县民族中学 | F140: 04040专业技术岗位 | G140: 79.75 | H140: 47.85 | I140: 16 | J140: 16 | K140: 02 | L140: HP20191602 | M140: 90.60 | N140: 36.24 | O140: 84.09 | P140: 1 | Q140: 是
A141: 136 | B141: 罗海春 | C141: 女 | D141: 522627199303053626 | E141: 黄平县民族中学 | F141: 04040专业技术岗位 | G141: 82.32 | H141: 49.39 | I141: 16 | J141: 16 | K141: 01 | L141: HP20191601 | M141: 80.80 | N141: 32.32 | O141: 81.71 | P141: 2
A142: 137 | B142: 周明春 | C142: 女 | D142: 522725199610117821 | E142: 黄平县民族中学 | F142: 04040专业技术岗位 | G142: 78.96 | H142: 47.38 | I142: 16 | J142: 16 | K142: 03 | L142: HP20191603 | M142: 84.60 | N142: 33.84 | O142: 81.22 | P142: 3
A143: 138 | B143: 李文欣 | C143: 女 | D143: 360425199709164320 | E143: 黄平县民族中学 | F143: 04041专业技术岗位 | G143: 77.68 | H143: 46.61 | I143: 16 | J143: 16 | K143: 04 | L143: HP20191604 | M143: 88.40 | N143: 35.36 | O143: 81.97 | P143: 1 | Q143: 是
A144: 139 | B144: 谭高洁 | C144: 女 | D144: 522129199509112527 | E144: 黄平县民族中学 | F144: 04041专业技术岗位 | G144: 77.01 | H144: 46.21 | I144: 16 | J144: 16 | K144: 05 | L144: HP20191605 | M144: 84.20 | N144: 33.68 | O144: 79.89 | P144: 2
A145: 140 | B145: 田青青 | C145: 女 | D145: 520121199712180020 | E145: 黄平县民族中学 | F145: 04041专业技术岗位 | G145: 76.09 | H145: 45.65 | I145: 16 | J145: 16 | K145: 06 | L145: HP20191606 | N145: 0.00 | O145: 45.65 | R145: 面试缺考
A146: 141 | B146: 谭敏 | C146: 女 | D146: 520221199609094525 | E146: 黄平县民族中学 | F146: 04042专业技术岗位 | G146: 76.85 | H146: 46.11 | I146: 17 | J146: 17 | K146: 01 | L146: HP20191701 | M146: 81.00 | N146: 32.40 | O146: 78.51 | P146: 1 | Q146: 是
A147: 142 | B147: 王丹丹 | C147: 女 | D147: 522225199508299027 | E147: 黄平县民族中学 | F147: 04042专业技术岗位 | G147: 73.72 | H147: 44.23 | I147: 17 | J147: 17 | K147: 03 | L147: HP20191703 | M147: 82.60 | N147: 33.04 | O147: 77.27 | P147: 2 | Q147: 是
A148: 143 | B148: 向梦园 | C148: 女 | D148: 522326199803041645 | E148: 黄平县民族中学 | F148: 04042专业技术岗位 | G148: 74.1 | H148: 44.46 | I148: 17 | J148: 17 | K148: 02 | L148: HP20191702 | M148: 81.80 | N148: 32.72 | O148: 77.18 | P148: 3
A149: 144 | B149: 付倩 | C149: 女 | D149: 522401199504262024 | E149: 黄平县民族中学 | F149: 04042专业技术岗位 | G149: 63.83 | H149: 38.30 | I149: 17 | J149: 17 | K149: 04 | L149: HP20191704 | M149: 74.80 | N149: 29.92 | O149: 68.22 | P149: 4
A150: 145 | B150: 龚连俊 | C150: 男 | D150: 520181198605143015 | E150: 黄平县中等职业学校 | F150: 04043专业技术岗位 | I150: 05 | J150: 05 | K150: 16 | L150: HP20190516 | M150: 76.40 | N150: =M150 -> 76.40 | O150: 76.40 | P150: 1 | Q150: 是
A151: 146 | B151: 吴明英 | C151: 女 | D151: 522622198608083045 | E151: 黄平县中等职业学校 | F151: 04044专业技术岗位 | I151: 05 | J151: 05 | K151: 17 | L151: HP20190517 | M151: 72.30 | N151: =M151 -> 72.30 | O151: 72.30 | P151: 1 | Q151: 是
A152: 147 | B152: 陈定宇 | C152: 女 | D152: 522129199608022527 | E152: 黄平县中等职业学校 | F152: 04045专业技术岗位 | G152: 61.79 | H152: =G152*0.6 -> 37.07 | I152: 05 | J152: 05 | K152: 20 | L152: HP20190520 | M152: 76.90 | N152: =M152*0.4 -> 30.76 | O152: 67.83 | P152: 1 | Q152: 是
A153: 148 | B153: 丁振策 | C153: 女 | D153: 522631199203084729 | E153: 黄平县中等职业学校 | F153: 04045专业技术岗位 | G153: 55.66 | H153: 33.40 | I153: 05 | J153: 05 | K153: 21 | L153: HP20190521 | M153: 78.80 | N153: 31.52 | O153: 64.92 | P153: 2 | Q153: 是
A154: 149 | B154: 龙柳群 | C154: 女 | D154: 522627199307044428 | E154: 黄平县中等职业学校 | F154: 04045专业技术岗位 | G154: 52.06 | H154: 31.24 | I154: 05 | J154: 05 | K154: 22 | L154: HP20190522 | M154: 72.90 | N154: 29.16 | O154: 60.40 | P154: 3
A155: 150 | B155: 高秘密 | C155: 女 | D155: 522401199306216625 | E155: 黄平县中等职业学校 | F155: 04045专业技术岗位 | G155: 63.65 | H155: 38.19 | I155: 05 | J155: 05 | K155: 18 | L155: HP20190518 | N155: 0.00 | O155: 38.19 | R155: 面试缺考
A156: 151 | B156: 龙燕 | C156: 女 | D156: 52262319940707002X | E156: 黄平县中等职业学校 | F156: 04045专业技术岗位 | G156: 61.92 | H156: 37.15 | I156: 05 | J156: 05 | K156: 19 | L156: HP20190519 | N156: 0.00 | O156: 37.15 | R156: 迟到，取消面试资格
A157: 152 | B157: 敖富敏 | C157: 女 | D157: 522425199408079124 | E157: 黄平县中等职业学校 | F157: 04045专业技术岗位 | G157: 52.05 | H157: 31.23 | I157: 05 | J157: 05 | K157: 23 | L157: HP20190523 | N157: 0.00 | O157: 31.23 | R157: 面试缺考
A158: 153 | B158: 王国勇 | C158: 男 | D158: 52273219910508425X | E158: 黄平县中等职业学校 | F158: 04046管理岗位 | G158: 72.2 | H158: 43.32 | I158: 05 | J158: 05 | K158: 25 | L158: HP20190525 | M158: 88.10 | N158: 35.24 | O158: 78.56 | P158: 1 | Q158: 是
A159: 154 | B159: 张吉虎 | C159: 男 | D159: 532128199306236111 | E159: 黄平县中等职业学校 | F159: 04046管理岗位 | G159: 75.22 | H159: 45.13 | I159: 05 | J159: 05 | K159: 24 | L159: HP20190524 | M159: 80.30 | N159: 32.12 | O159: 77.25 | P159: 2
A160: 155 | B160: 梁玉玫 | C160: 女 | D160: 52242319920612262X | E160: 黄平县中等职业学校 | F160: 04046管理岗位 | G160: 71.87 | H160: 43.12 | I160: 05 | J160: 05 | K160: 26 | L160: HP20190526 | N160: 0.00 | O160: 43.12 | R160: 面试缺考
A161: 156 | B161: 潘登红 | C161: 女 | D161: 510522199406174868 | E161: 黄平县中等职业学校 | F161: 04047专业技术岗位 | G161: 84.48 | H161: 50.69 | I161: 18 | J161: 18 | K161: 01 | L161: HP20191801 | M161: 65.40 | N161: 26.16 | O161: 76.85 | P161: 1 | Q161: 是
A162: 157 | B162: 江宇 | C162: 女 | D162: 522129199309213526 | E162: 黄平县中等职业学校 | F162: 04047专业技术岗位 | G162: 81.16 | H162: 48.70 | I162: 18 | J162: 18 | K162: 02 | L162: HP20191802 | M162: 61.20 | N162: 24.48 | O162: 73.18
A163: 158 | B163: 岳丹 | C163: 女 | D163: 51302219900910436X | E163: 黄平县中等职业学校 | F163: 04048专业技术岗位 | G163: 82.04 | H163: 49.22 | I163: 06 | J163: 06 | K163: 01 | L163: HP20190601 | M163: 89.20 | N163: 35.68 | O163: 84.90 | P163: 1 | Q163: 是
A164: 159 | B164: 石荟穆 | C164: 女 | D164: 522631199402180043 | E164: 黄平县中等职业学校 | F164: 04048专业技术岗位 | G164: 80.37 | H164: 48.22 | I164: 06 | J164: 06 | K164: 03 | L164: HP20190603 | M164: 87.40 | N164: 34.96 | O164: 83.18 | P164: 2 | Q164: 是
A165: 160 | B165: 熊天霞 | C165: 女 | D165: 522422199212096222 | E165: 黄平县中等职业学校 | F165: 04048专业技术岗位 | G165: 77.5 | H165: 46.50 | I165: 06 | J165: 06 | K165: 04 | L165: HP20190604 | M165: 89.60 | N165: 35.84 | O165: 82.34 | P165: 3
A166: 161 | B166: 程乾 | C166: 男 | D166: 52242819910511063X | E166: 黄平县中等职业学校 | F166: 04048专业技术岗位 | G166: 80.57 | H166: 48.34 | I166: 06 | J166: 06 | K166: 02 | L166: HP20190602 | M166: 82.80 | N166: 33.12 | O166: 81.46 | P166: 4
A167: 162 | B167: 刘珍英 | C167: 女 | D167: 522622199302080786 | E167: 黄平县中等职业学校 | F167: 04048专业技术岗位 | G167: 77.46 | H167: 46.48 | I167: 06 | J167: 06 | K167: 05 | L167: HP20190605 | M167: 83.00 | N167: 33.20 | O167: 79.68 | P167: 5
A168: 163 | B168: 陈峰 | C168: 男 | D168: 522422199303165019 | E168: 黄平县中等职业学校 | F168: 04048专业技术岗位 | G168: 75.75 | H168: 45.45 | I168: 06 | J168: 06 | K168: 06 | L168: HP20190606 | M168: 81.40 | N168: 32.56 | O168: 78.01 | P168: 6
A169: 164 | B169: 任明艳 | C169: 女 | D169: 522129199701041044 | E169: 黄平县中等职业学校 | F169: 04049专业技术岗位 | G169: 73.86 | H169: 44.32 | I169: 16 | J169: 16 | K169: 07 | L169: HP20191607 | M169: 84.40 | N169: 33.76 | O169: 78.08 | P169: 1 | Q169: 是
A170: 165 | B170: 刘芸莲 | C170: 女 | D170: 522622199606170027 | E170: 黄平县中等职业学校 | F170: 04050专业技术岗位 | G170: 85.73 | H170: 51.44 | I170: 16 | J170: 16 | K170: 08 | L170: HP20191608 | M170: 85.80 | N170: 34.32 | O170: 85.76 | P170: 1 | Q170: 是
A171: 166 | B171: 石宇 | C171: 女 | D171: 522601199610016020 | E171: 黄平县中等职业学校 | F171: 04050专业技术岗位 | G171: 80.37 | H171: 48.22 | I171: 16 | J171: 16 | K171: 09 | L171: HP20191609 | N171: 0.00 | O171: 48.22 | R171: 面试缺考
A172: 167 | B172: 吴多 | C172: 女 | D172: 522601199607070528 | E172: 黄平县旧州中学 | F172: 04051专业技术岗位 | G172: 76.75 | H172: 46.05 | I172: 17 | J172: 17 | K172: 05 | L172: HP20191705 | M172: 79.00 | N172: 31.60 | O172: 77.65 | P172: 1 | Q172: 是
A173: 168 | B173: 王英莲 | C173: 女 | D173: 52262219960811052X | E173: 黄平县旧州中学 | F173: 04051专业技术岗位 | G173: 72.94 | H173: 43.76 | I173: 17 | J173: 17 | K173: 06 | L173: HP20191706 | M173: 82.80 | N173: 33.12 | O173: 76.88 | P173: 2 | Q173: 是
A174: 169 | B174: 余迪 | C174: 男 | D174: 522501199406200431 | E174: 黄平县旧州中学 | F174: 04051专业技术岗位 | G174: 69.64 | H174: 41.78 | I174: 17 | J174: 17 | K174: 07 | L174: HP20191707 | N174: 0.00 | O174: 41.78 | R174: 面试缺考
A175: 170 | B175: 张号 | C175: 男 | D175: 500234199606151713 | E175: 黄平县旧州第二中学 | F175: 04052专业技术岗位 | G175: 76.33 | H175: 45.80 | I175: 06 | J175: 06 | K175: 08 | L175: HP20190608 | M175: 83.20 | N175: 33.28 | O175: 79.08 | P175: 1 | Q175: 是
A176: 171 | B176: 刘智勇 | C176: 女 | D176: 522725199005011244 | E176: 黄平县旧州第二中学 | F176: 04052专业技术岗位 | G176: 77.37 | H176: 46.42 | I176: 06 | J176: 06 | K176: 07 | L176: HP20190607 | M176: 79.20 | N176: 31.68 | O176: 78.10 | P176: 2
A177: 172 | B177: 刘颖 | C177: 女 | D177: 522622199512300046 | E177: 黄平县乡镇幼儿园 | F177: 04053专业技术岗位 | G177: 79.82 | H177: 47.89 | I177: 18 | J177: 18 | K177: 06 | L177: HP20191806 | M177: 90.00 | N177: 36.00 | O177: 83.89 | P177: 1 | Q177: 是
A178: 173 | B178: 陈佳 | C178: 女 | D178: 522129198907172520 | E178: 黄平县乡镇幼儿园 | F178: 04053专业技术岗位 | G178: 77.66 | H178: 46.60 | I178: 18 | J178: 18 | K178: 14 | L178: HP20191814 | M178: 89.00 | N178: 35.60 | O178: 82.20 | P178: 2 | Q178: 是
A179: 174 | B179: 龙美英 | C179: 女 | D179: 522622199701020107 | E179: 黄平县乡镇幼儿园 | F179: 04053专业技术岗位 | G179: 76.85 | H179: 46.11 | I179: 18 | J179: 18 | K179: 18 | L179: HP20191818 | M179: 84.20 | N179: 33.68 | O179: 79.79 | P179: 3 | Q179: 是
A180: 175 | B180: 吴玲玲 | C180: 女 | D180: 522129199707285541 | E180: 黄平县乡镇幼儿园 | F180: 04053专业技术岗位 | G180: 80.45 | H180: 48.27 | I180: 18 | J180: 18 | K180: 03 | L180: HP20191803 | M180: 77.20 | N180: 30.88 | O180: 79.15 | P180: 4 | Q180: 是
A181: 176 | B181: 罗凤翔 | C181: 女 | D181: 510322199509095520 | E181: 黄平县乡镇幼儿园 | F181: 04053专业技术岗位 | G181: 78.09 | H181: 46.85 | I181: 18 | J181: 18 | K181: 12 | L181: HP20191812 | M181: 80.50 | N181: 32.20 | O181: 79.05 | P181: 5 | Q181: 是
A182: 177 | B182: 吴凤英 | C182: 女 | D182: 522629199406139820 | E182: 黄平县乡镇幼儿园 | F182: 04053专业技术岗位 | G182: 80.13 | H182: 48.08 | I182: 18 | J182: 18 | K182: 05 | L182: HP20191805 | M182: 75.80 | N182: 30.32 | O182: 78.40 | P182: 6 | Q182: 是
A183: 178 | B183: 杨小米 | C183: 女 | D183: 522601199711083767 | E183: 黄平县乡镇幼儿园 | F183: 04053专业技术岗位 | G183: 76.79 | H183: 46.07 | I183: 18 | J183: 18 | K183: 19 | L183: HP20191819 | M183: 80.00 | N183: 32.00 | O183: 78.07 | P183: 7 | Q183: 是
A184: 179 | B184: 王芳 | C184: 女 | D184: 52272519961223356X | E184: 黄平县乡镇幼儿园 | F184: 04053专业技术岗位 | G184: 80.41 | H184: =G184*0.6 -> 48.25 | I184: 18 | J184: 18 | K184: 04 | L184: HP20191804 | M184: 72.10 | N184: =M184*0.4 -> 28.84 | O184: 77.09 | P184: 8
A185: 180 | B185: 王芳芳 | C185: 女 | D185: 522601199506154829 | E185: 黄平县乡镇幼儿园 | F185: 04053专业技术岗位 | G185: 77.96 | H185: 46.78 | I185: 18 | J185: 18 | K185: 13 | L185: HP20191813 | M185: 73.30 | N185: 29.32 | O185: 76.10 | P185: 9
A186: 181 | B186: 杨梅 | C186: 女 | D186: 522629199204100047 | E186: 黄平县乡镇幼儿园 | F186: 04053专业技术岗位 | G186: 78.79 | H186: 47.27 | I186: 18 | J186: 18 | K186: 10 | L186: HP20191810 | M186: 71.00 | N186: 28.40 | O186: 75.67 | P186: 10
A187: 182 | B187: 杨慧 | C187: 女 | D187: 522228199603060427 | E187: 黄平县乡镇幼儿园 | F187: 04053专业技术岗位 | G187: 79.54 | H187: 47.72 | I187: 18 | J187: 18 | K187: 07 | L187: HP20191807 | M187: 69.60 | N187: 27.84 | O187: 75.56 | P187: 11
A188: 183 | B188: 罗茂 | C188: 女 | D188: 532129199508270023 | E188: 黄平县乡镇幼儿园 | F188: 04053专业技术岗位 | G188: 78.71 | H188: 47.23 | I188: 18 | J188: 18 | K188: 11 | L188: HP20191811 | M188: 69.10 | N188: 27.64 | O188: 74.87 | P188: 12
A189: 184 | B189: 陈梦思 | C189: 女 | D189: 52260119961120156X | E189: 黄平县乡镇幼儿园 | F189: 04053专业技术岗位 | G189: 76.56 | H189: 45.94 | I189: 18 | J189: 18 | K189: 21 | L189: HP20191821 | M189: 71.20 | N189: 28.48 | O189: 74.42 | P189: 13
A190: 185 | B190: 任永会 | C190: 女 | D190: 522723199505062969 | E190: 黄平县乡镇幼儿园 | F190: 04053专业技术岗位 | G190: 76.56 | H190: 45.94 | I190: 18 | J190: 18 | K190: 20 | L190: HP20191820 | M190: 70.80 | N190: 28.32 | O190: 74.26 | P190: 14
A191: 186 | B191: 黄尧丹 | C191: 女 | D191: 520202198708285526 | E191: 黄平县乡镇幼儿园 | F191: 04053专业技术岗位 | G191: 79.33 | H191: 47.60 | I191: 18 | J191: 18 | K191: 08 | L191: HP20191808 | M191: 66.60 | N191: 26.64 | O191: 74.24 | P191: 15
A192: 187 | B192: 王兴莉 | C192: 女 | D192: 522634199608200029 | E192: 黄平县乡镇幼儿园 | F192: 04053专业技术岗位 | G192: 77.54 | H192: 46.52 | I192: 18 | J192: 18 | K192: 16 | L192: HP20191816 | M192: 68.00 | N192: 27.20 | O192: 73.72 | P192: 16
A193: 188 | B193: 胡丹丹 | C193: 女 | D193: 520202199411063062 | E193: 黄平县乡镇幼儿园 | F193: 04053专业技术岗位 | G193: 77.43 | H193: 46.46 | I193: 18 | J193: 18 | K193: 17 | L193: HP20191817 | M193: 62.90 | N193: 25.16 | O193: 71.62 | P193: 17
A194: 189 | B194: 闻翠仙 | C194: 女 | D194: 530322199110080742 | E194: 黄平县乡镇幼儿园 | F194: 04053专业技术岗位 | G194: 79.24 | H194: 47.54 | I194: 18 | J194: 18 | K194: 09 | L194: HP20191809 | M194: 0.00 | N194: 0.00 | O194: 47.54 | R194: 面试缺考
A195: 190 | B195: 吴雪 | C195: 女 | D195: 522601199701318024 | E195: 黄平县乡镇幼儿园 | F195: 04053专业技术岗位 | G195: 77.63 | H195: 46.58 | I195: 18 | J195: 18 | K195: 15 | L195: HP20191815 | M195: 0.00 | N195: 0.00 | O195: 46.58 | R195: 面试缺考
A196: 191 | B196: 雷晓芳 | C196: 女 | D196: 522622199703101525 | E196: 谷陇镇幼儿园 | F196: 04054专业技术岗位 | G196: 80.37 | H196: 48.22 | I196: 18 | J196: 18 | K196: 22 | L196: HP20191822 | M196: 82.00 | N196: 32.80 | O196: 81.02 | P196: 1 | Q196: 是
A197: 192 | B197: 龙文艺 | C197: 女 | D197: 522622200006020020 | E197: 谷陇镇幼儿园 | F197: 04054专业技术岗位 | G197: 79.09 | H197: 47.45 | I197: 18 | J197: 18 | K197: 23 | L197: HP20191823 | M197: 83.60 | N197: 33.44 | O197: 80.89 | P197: 2 | Q197: 是
A198: 193 | B198: 田方圆 | C198: 女 | D198: 522622199712161589 | E198: 谷陇镇幼儿园 | F198: 04054专业技术岗位 | G198: 77.56 | H198: 46.54 | I198: =J198 -> 18 | J198: 18 | K198: 25 | L198: ="HP2019"&J198&K198 -> HP20191825 | M198: 84.90 | N198: 33.96 | O198: =H198+N198 -> 80.50 | P198: 3
A199: 194 | B199: 吴明英 | C199: 女 | D199: 522622199508080028 | E199: 谷陇镇幼儿园 | F199: 04054专业技术岗位 | G199: 77.88 | H199: 46.73 | I199: 18 | J199: 18 | K199: 24 | L199: HP20191824 | M199: 80.20 | N199: 32.08 | O199: 78.81 | P199: 4
A200: 195 | B200: 张玉侨 | C200: 女 | D200: 522622199703250029 | E200: 谷陇镇幼儿园 | F200: 04054专业技术岗位 | G200: 75.51 | H200: 45.31 | I200: 18 | J200: 18 | K200: 26 | L200: HP20191826 | M200: 77.30 | N200: 30.92 | O200: 76.23 | P200: 5
... 289 more rows

Sheet Sheet2

Sheet Sheet3
